fUSD/lending_fUSD_20250105
["ID","MTS","AMOUNT","RATE_DAILY","PERIOD"]
[347767065,1736097039784,-500.0,8.59e-05,2]
[347767067,1736097039794,-500.0,8.59e-05,2]
[347767069,1736097039803,-500.0,8.59e-05,2]
[347767071,1736097039813,-506.89,8.59e-05,2]
[347767074,1736097039823,-500.0,8.59e-05,2]
[347767076,1736097039833,-500.0,8.59e-05,2]
[347767077,1736097039842,-500.0,8.59e-05,2]
[347767079,1736097039852,-500.0,8.59e-05,2]
[347767083,1736097039861,-500.0,8.59e-05,2]
[347767085,1736097039871,-503.40308791,8.59e-05,2]
[347767086,1736097039880,-500.0,8.59e-05,2]
[347767089,1736097039890,-652.09,8.59e-05,2]
[347767090,1736097039899,-500.0,8.59e-05,2]
[347767093,1736097039909,-500.0,8.59e-05,2]
[347767095,1736097039919,-500.0,8.59e-05,2]
[347767097,1736097039928,-500.0,8.59e-05,2]
[347767099,1736097039938,-500.0,8.59e-05,2]
[347767101,1736097039947,-500.0,8.59e-05,2]
[347767103,1736097039958,-500.0,8.59e-05,2]
[347767105,1736097039971,-500.0,8.59e-05,2]
[347767107,1736097039982,-500.0,8.59e-05,2]
[347767109,1736097039994,-500.0,8.59e-05,2]
[347767111,1736097040003,-500.0,8.59e-05,2]
[347767113,1736097040012,-500.0,8.59e-05,2]
[347767115,1736097040022,-500.0,8.59e-05,2]
[347767117,1736097040031,-448.64552115,8.59e-05,2]
[347767119,1736097040041,-500.18632381,8.59e-05,2]
[347767121,1736097040050,-500.0,8.59e-05,2]
[347767123,1736097040061,-500.0,8.59e-05,2]
[347767125,1736097040070,-500.0,8.59e-05,2]
[347767127,1736097040080,-500.0,8.59e-05,2]
[347767129,1736097040089,-500.0,8.59e-05,2]
[347767131,1736097040099,-500.0,8.59e-05,2]
[347767133,1736097040108,-500.0,8.59e-05,2]
[347767135,1736097040118,-500.0,8.59e-05,2]
[347767137,1736097040127,-500.0,8.59e-05,2]
[347767139,1736097040136,-500.0,8.59e-05,2]
[347767141,1736097040146,-500.0,8.59e-05,2]
[347767143,1736097040157,-500.0,8.59e-05,2]
[347767145,1736097040167,-947.45,8.59e-05,2]
[347767147,1736097040177,-500.0,8.59e-05,2]
[347767149,1736097040186,-500.0,8.59e-05,2]
[347767151,1736097040195,-500.0,8.59e-05,2]
[347767153,1736097040205,-500.0,8.59e-05,2]
[347767155,1736097040214,-500.0,8.59e-05,2]
[347767157,1736097040224,-500.0,8.59e-05,2]
[347767159,1736097040233,-557.19,8.59e-05,2]
[347767161,1736097040243,-500.0,8.59e-05,2]
[347767163,1736097040252,-500.0,8.59e-05,2]
[347767165,1736097040262,-500.0,8.59e-05,2]
[347767167,1736097040272,-500.0,8.59e-05,2]
[347767169,1736097040281,-500.0,8.59e-05,2]
[347767171,1736097040291,-500.000001,8.59e-05,2]
[347767173,1736097040300,-500.0,8.59e-05,2]
[347767175,1736097040310,-500.0,8.59e-05,2]
[347767177,1736097040319,-500.0,8.59e-05,2]
[347767179,1736097040329,-654.0,8.59e-05,2]
[347767180,1736097040338,-345.97877456,8.59e-05,2]
[347767181,1736097040348,-500.0,8.59e-05,2]
[347767182,1736097040358,-500.0,8.59e-05,2]
[347767183,1736097040367,-500.0,8.59e-05,2]
[347767184,1736097040377,-287.73608368,8.59e-05,2]
[347767185,1736097040387,-500.0,8.59e-05,2]
[347767186,1736097040396,-500.0,8.59e-05,2]
[347767187,1736097040406,-500.0,8.59e-05,2]
[347767188,1736097040416,-500.0,8.59e-05,2]
[347767190,1736097040425,-500.0,8.59e-05,2]
[347767192,1736097040435,-500.0,8.59e-05,2]
[347767194,1736097040444,-500.0,8.59e-05,2]
[347767196,1736097040454,-500.0,8.59e-05,2]
[347767198,1736097040463,-500.0,8.59e-05,2]
[347767199,1736097040473,-500.0,8.59e-05,2]
[347767202,1736097040483,-500.0,8.59e-05,2]
[347767203,1736097040492,-528.09,8.59e-05,2]
[347767205,1736097040502,-500.0,8.59e-05,2]
[347767207,1736097040511,-500.0,8.59e-05,2]
[347767209,1736097040520,-500.0,8.59e-05,2]
[347767211,1736097040529,-500.0,8.59e-05,2]
[347767213,1736097040539,-500.0,8.59e-05,2]
[347767215,1736097040551,-500.0,8.59e-05,2]
[347767217,1736097040561,-500.0,8.59e-05,2]
[347767219,1736097040570,-500.0,8.59e-05,2]
[347767222,1736097040580,-500.0,8.59e-05,2]
[347767223,1736097040589,-500.0,8.59e-05,2]
[347767225,1736097040598,-500.0,8.59e-05,2]
[347767228,1736097040608,-500.0,8.59e-05,2]
[347767230,1736097040617,-500.0,8.59e-05,2]
[347767232,1736097040626,-500.0,8.59e-05,2]
[347767234,1736097040636,-500.0,8.59e-05,2]
[347767236,1736097040645,-426.14099386,8.59e-05,2]
[347767238,1736097040655,-500.0,8.59e-05,2]
[347767240,1736097040665,-500.0,8.59e-05,2]
[347767242,1736097040674,-500.0,8.59e-05,2]
[347767244,1736097040683,-500.0,8.59e-05,2]
[347767246,1736097040693,-500.0,8.59e-05,2]
[347767248,1736097040702,-500.0,8.59e-05,2]
[347767250,1736097040711,-500.0,8.59e-05,2]
[347767252,1736097040720,-500.55783534,8.59e-05,2]
[347767254,1736097040730,-500.0,8.59e-05,2]
[347767256,1736097040739,-500.0,8.59e-05,2]
[347767258,1736097040747,-500.0,8.59e-05,2]
[347767260,1736097040756,-500.0,8.59e-05,2]
[347767262,1736097040766,-500.0,8.59e-05,2]
[347767264,1736097040775,-500.0,8.59e-05,2]
[347767266,1736097040785,-231.02340099,8.59e-05,2]
[347767268,1736097040796,-500.0,8.59e-05,2]
[347767270,1736097040805,-500.0,8.59e-05,2]
[347767272,1736097040814,-500.0,8.59e-05,2]
[347767274,1736097040824,-500.0,8.59e-05,2]
[347767276,1736097040833,-500.0,8.59e-05,2]
[347767278,1736097040842,-500.0,8.59e-05,2]
[347767280,1736097040852,-500.0,8.59e-05,2]
[347767282,1736097040861,-500.0,8.59e-05,2]
[347767284,1736097040870,-500.0,8.59e-05,2]
[347767286,1736097040880,-500.0,8.59e-05,2]
[347767288,1736097040889,-500.0,8.59e-05,2]
[347767290,1736097040898,-500.0,8.59e-05,2]
[347767292,1736097040907,-500.0,8.59e-05,2]
[347767294,1736097040917,-565.32,8.59e-05,2]
[347767296,1736097040926,-500.0,8.59e-05,2]
[347767298,1736097040935,-500.0,8.59e-05,2]
[347767300,1736097040945,-500.0,8.59e-05,2]
[347767302,1736097040954,-527.79250027,8.59e-05,2]
[347767304,1736097040963,-500.0,8.59e-05,2]
[347767306,1736097040972,-1098.73,8.59e-05,2]
[347767308,1736097040981,-500.0,8.59e-05,2]
[347767310,1736097040991,-500.0,8.59e-05,2]
[347767312,1736097041000,-500.0,8.59e-05,2]
[347767314,1736097041010,-500.0,8.59e-05,2]
[347767316,1736097041019,-500.0,8.59e-05,2]
[347767318,1736097041028,-409.22747123,8.59e-05,2]
[347767320,1736097041038,-535.63,8.59e-05,2]
[347767322,1736097041049,-500.0,8.59e-05,2]
[347767324,1736097041058,-500.0,8.59e-05,2]
[347767326,1736097041067,-500.0,8.59e-05,2]
[347767328,1736097041077,-500.0,8.59e-05,2]
[347767330,1736097041086,-500.0,8.59e-05,2]
[347767332,1736097041095,-500.0,8.59e-05,2]
[347767334,1736097041104,-500.0,8.59e-05,2]
[347767336,1736097041113,-500.0,8.59e-05,2]
[347767337,1736097041122,-500.0,8.59e-05,2]
[347767339,1736097041132,-150.96964171,8.59e-05,2]
[347767341,1736097041141,-500.0,8.59e-05,2]
[347767344,1736097041150,-560.86,8.59e-05,2]
[347767345,1736097041160,-500.0,8.59e-05,2]
[347767348,1736097041170,-500.0,8.59e-05,2]
[347767350,1736097041179,-500.0,8.59e-05,2]
[347767352,1736097041189,-500.0,8.59e-05,2]
[347767354,1736097041198,-500.0,8.59e-05,2]
[347767356,1736097041208,-500.0,8.59e-05,2]
[347767358,1736097041217,-500.0,8.59e-05,2]
[347767360,1736097041226,-500.0,8.59e-05,2]
[347767362,1736097041236,-500.0,8.59e-05,2]
[347767364,1736097041245,-500.0,8.59e-05,2]
[347767366,1736097041254,-500.0,8.59e-05,2]
[347767368,1736097041264,-500.0,8.662e-05,2]
[347767370,1736097041273,-410550.3567,8.663e-05,2]
[347767372,1736097041284,-1149.4889,8.666e-05,2]
[347767374,1736097041295,-1680.12,8.762e-05,2]
[347767376,1736097041304,-766.138512,8.762e-05,2]
[347767378,1736097041313,-704.48,8.762e-05,2]
[347767380,1736097041322,-587.805649,8.762e-05,2]
[347767382,1736097041332,-166.856337,8.762e-05,2]
[347767384,1736097041341,-500.0,8.762e-05,2]
[347767386,1736097041351,-500.0,8.762e-05,2]
[347767388,1736097041361,-500.0,8.762e-05,2]
[347767390,1736097041375,-1780.51,8.762e-05,2]
[347767392,1736097041385,-961.56,8.762e-05,2]
[347767394,1736097041395,-905.19,8.762e-05,2]
[347767396,1736097041404,-891.51,8.762e-05,2]
[347767398,1736097041413,-500.0,8.762e-05,2]
[347767400,1736097041422,-286.76359041,8.762e-05,2]
[347767402,1736097041432,-500.0,8.762e-05,2]
[347767404,1736097041442,-1030.69,8.762e-05,2]
[347767406,1736097041452,-152.483735,8.762e-05,2]
[347767408,1736097041462,-1399.36,8.762e-05,2]
[347767410,1736097041471,-155.612781,8.762e-05,2]
[347767412,1736097041480,-177.04717,8.762e-05,2]
[347767414,1736097041491,-594.48,8.762e-05,2]
[347767416,1736097041501,-832.4,8.762e-05,2]
[347767418,1736097041511,-157.588954,8.762e-05,2]
[347767420,1736097041520,-155.826197,8.762e-05,2]
[347767422,1736097041529,-553.05,8.763e-05,2]
[347767424,1736097041539,-500.0,8.763e-05,2]
[347767426,1736097041549,-577.38399881,8.763e-05,2]
[347767428,1736097041559,-500.0,8.763e-05,2]
[347767430,1736097041568,-558.34,8.763e-05,2]
[347767432,1736097041579,-500.0,8.763e-05,2]
[347767434,1736097041590,-500.0,8.763e-05,2]
[347767436,1736097041600,-500.0,8.763e-05,2]
[347767438,1736097041610,-500.0,8.763e-05,2]
[347767441,1736097041621,-500.0,8.763e-05,2]
[347767443,1736097041631,-500.0,8.763e-05,2]
[347767450,1736097041690,-500.0,8.763e-05,2]
[347767452,1736097041700,-500.0,8.763e-05,2]
[347767454,1736097041709,-500.0,8.763e-05,2]
[347767456,1736097041718,-500.0,8.763e-05,2]
[347767457,1736097041727,-500.0,8.763e-05,2]
[347767459,1736097041737,-500.0,8.763e-05,2]
[347767460,1736097041746,-500.0,8.763e-05,2]
[347767461,1736097041756,-500.0,8.763e-05,2]
[347767463,1736097041764,-500.0,8.763e-05,2]
[347767465,1736097041774,-500.0,8.763e-05,2]
[347767467,1736097041783,-500.0,8.763e-05,2]
[347767469,1736097041793,-500.0,8.763e-05,2]
[347767471,1736097041803,-700.88,8.763e-05,2]
[347767472,1736097041813,-556.79,8.763e-05,2]
[347767474,1736097041822,-500.0,8.763e-05,2]
[347767476,1736097041831,-500.0,8.763e-05,2]
[347767478,1736097041840,-500.0,8.763e-05,2]
[347767480,1736097041850,-500.0,8.763e-05,2]
[347767482,1736097041860,-500.0,8.763e-05,2]
[347767484,1736097041869,-500.0,8.763e-05,2]
[347767486,1736097041878,-500.0,8.763e-05,2]
[347767488,1736097041888,-500.0,8.763e-05,2]
[347767490,1736097041896,-500.0,8.763e-05,2]
[347767492,1736097041906,-500.0,8.763e-05,2]
[347767494,1736097041915,-601.32,8.763e-05,2]
[347767496,1736097041924,-571.88,8.763e-05,2]
[347767498,1736097041933,-664.87,8.763e-05,2]
[347767500,1736097041942,-536.69,8.763e-05,2]
[347767502,1736097041951,-348.56,8.763e-05,2]
[347767504,1736097041960,-500.0,8.763e-05,2]
[347767506,1736097041969,-500.0,8.763e-05,2]
[347767507,1736097041978,-500.0,8.763e-05,2]
[347767509,1736097041988,-166.52,8.763e-05,2]
[347767511,1736097041997,-500.0,8.763e-05,2]
[347767514,1736097042007,-500.0,8.763e-05,2]
[347767515,1736097042015,-500.0,8.763e-05,2]
[347767517,1736097042024,-500.0,8.763e-05,2]
[347767519,1736097042033,-500.0,8.763e-05,2]
[347767521,1736097042043,-500.0,8.763e-05,2]
[347767523,1736097042053,-500.0,8.763e-05,2]
[347767525,1736097042062,-500.0,8.763e-05,2]
[347767527,1736097042071,-578.14,8.763e-05,2]
[347767529,1736097042081,-500.0,8.763e-05,2]
[347767531,1736097042090,-500.0,8.763e-05,2]
[347767533,1736097042099,-627.13,8.763e-05,2]
[347767535,1736097042109,-633.35,8.763e-05,2]
[347767537,1736097042118,-500.0,8.763e-05,2]
[347767539,1736097042127,-578.17,8.763e-05,2]
[347767541,1736097042136,-500.0,8.763e-05,2]
[347767543,1736097042145,-500.0,8.763e-05,2]
[347767545,1736097042154,-700.08,8.763e-05,2]
[347767547,1736097042163,-500.0,8.763e-05,2]
[347767549,1736097042172,-500.0,8.763e-05,2]
[347767551,1736097042181,-500.0,8.763e-05,2]
[347767553,1736097042190,-500.0,8.763e-05,2]
[347767555,1736097042199,-794.97,8.763e-05,2]
[347767556,1736097042209,-500.0,8.763e-05,2]
[347767558,1736097042218,-500.0,8.763e-05,2]
[347767560,1736097042228,-500.0,8.763e-05,2]
[347767562,1736097042237,-599.09,8.763e-05,2]
[347767564,1736097042246,-500.0,8.763e-05,2]
[347767566,1736097042255,-500.0,8.763e-05,2]
[347767568,1736097042264,-500.0,8.763e-05,2]
[347767570,1736097042273,-762.48,8.763e-05,2]
[347767572,1736097042282,-500.0,8.763e-05,2]
[347767574,1736097042292,-500.0,8.763e-05,2]
[347767576,1736097042302,-508.75,8.763e-05,2]
[347767578,1736097042311,-500.0,8.763e-05,2]
[347767580,1736097042320,-500.0,8.763e-05,2]
[347767582,1736097042329,-500.0,8.764e-05,2]
[347767584,1736097042338,-500.0,8.764e-05,2]
[347767587,1736097042348,-500.0,8.764e-05,2]
[347767588,1736097042357,-500.0,8.764e-05,2]
[347767591,1736097042369,-500.0,8.764e-05,2]
[347767593,1736097042379,-500.0,8.764e-05,2]
[347767594,1736097042387,-1755.58,8.764e-05,2]
[347767596,1736097042397,-500.0,8.764e-05,2]
[347767598,1736097042406,-500.0,8.764e-05,2]
[347767600,1736097042415,-638.89,8.764e-05,2]
[347767602,1736097042424,-500.0,8.764e-05,2]
[347767604,1736097042435,-500.0,8.764e-05,2]
[347767606,1736097042444,-500.0,8.764e-05,2]
[347767609,1736097042454,-500.0,8.764e-05,2]
[347767610,1736097042463,-2164.95,8.764e-05,2]
[347767612,1736097042472,-500.0,8.764e-05,2]
[347767614,1736097042482,-500.0,8.764e-05,2]
[347767616,1736097042491,-409.13144183,8.764e-05,2]
[347767618,1736097042500,-1234.8,8.764e-05,2]
[347767620,1736097042509,-500.0,8.764e-05,2]
[347767622,1736097042518,-500.0,8.764e-05,2]
[347767624,1736097042528,-500.0,8.764e-05,2]
[347767626,1736097042537,-500.0,8.764e-05,2]
[347767628,1736097042549,-259.05432762,8.764e-05,2]
[347767630,1736097042559,-500.0,8.764e-05,2]
[347767632,1736097042568,-500.0,8.764e-05,2]
[347767634,1736097042578,-500.0,8.764e-05,2]
[347767636,1736097042588,-500.0,8.764e-05,2]
[347767638,1736097042598,-500.0,8.764e-05,2]
[347767640,1736097042607,-500.0,8.764e-05,2]
[347767642,1736097042617,-756.66,8.764e-05,2]
[347767645,1736097042627,-500.0,8.764e-05,2]
[347767646,1736097042637,-1099.05,8.764e-05,2]
[347767648,1736097042646,-609.54553212,8.764e-05,2]
[347767650,1736097042655,-500.0,8.764e-05,2]
[347767652,1736097042664,-500.0,8.764e-05,2]
[347767654,1736097042674,-500.0,8.764e-05,2]
[347767656,1736097042683,-634.87672386,8.764e-05,2]
[347767658,1736097042692,-609.31,8.764e-05,2]
[347767660,1736097042701,-587.34,8.764e-05,2]
[347767662,1736097042711,-500.0,8.764e-05,2]
[347767664,1736097042721,-328.36,8.764e-05,2]
[347767666,1736097042730,-500.0,8.764e-05,2]
[347767668,1736097042739,-500.0,8.764e-05,2]
[347767670,1736097042748,-500.0,8.764e-05,2]
[347767672,1736097042758,-511.14,8.764e-05,2]
[347767675,1736097042768,-993.51,8.764e-05,2]
[347767677,1736097042778,-500.0,8.764e-05,2]
[347767680,1736097042787,-500.0,8.764e-05,2]
[347767682,1736097042799,-500.0,8.764e-05,2]
[347767684,1736097042808,-193.31,8.764e-05,2]
[347767686,1736097042817,-500.0,8.764e-05,2]
[347767690,1736097042827,-175.06,8.764e-05,2]
[347767692,1736097042836,-928.38,8.764e-05,2]
[347767694,1736097042846,-500.0,8.764e-05,2]
[347767697,1736097042855,-651.19,8.764e-05,2]
[347767701,1736097042865,-1569.04,8.764e-05,2]
[347767703,1736097042874,-1414.11,8.764e-05,2]
[347767704,1736097042883,-1755.76,8.764e-05,2]
[347767705,1736097042891,-553.42,8.764e-05,2]
[347767706,1736097042900,-1658.3,8.764e-05,2]
[347767707,1736097042910,-882.25,8.764e-05,2]
[347767708,1736097042919,-1011.32,8.764e-05,2]
[347767709,1736097042928,-500.0,8.764e-05,2]
[347767710,1736097042937,-1576.63,8.764e-05,2]
[347767711,1736097042945,-961.74,8.766e-05,2]
[347767713,1736097042954,-2872.77,8.766e-05,2]
[347767714,1736097042964,-757.54,8.766e-05,2]
[347767715,1736097042973,-500.0,8.766e-05,2]
[347767717,1736097042982,-1689.38,8.766e-05,2]
[347767719,1736097042991,-582.28,8.766e-05,2]
[347767721,1736097043001,-500.0,8.766e-05,2]
[347767723,1736097043010,-500.0,8.766e-05,2]
[347767725,1736097043019,-811.88,8.766e-05,2]
[347767727,1736097043029,-500.0,8.766e-05,2]
[347767729,1736097043038,-1525.05,8.766e-05,2]
[347767731,1736097043049,-758.87,8.766e-05,2]
[347767733,1736097043059,-684.2,8.766e-05,2]
[347767735,1736097043068,-976.33,8.766e-05,2]
[347767737,1736097043078,-1024.5,8.766e-05,2]
[347767739,1736097043088,-500.0,8.766e-05,2]
[347767741,1736097043098,-897.75,8.766e-05,2]
[347767743,1736097043108,-2270.81,8.766e-05,2]
[347767745,1736097043118,-740.6,8.766e-05,2]
[347767747,1736097043127,-500.0,8.766e-05,2]
[347767749,1736097043137,-750.4,8.766e-05,2]
[347767751,1736097043147,-742.21,8.766e-05,2]
[347767753,1736097043158,-500.0,8.766e-05,2]
[347767756,1736097043167,-1133.82,8.766e-05,2]
[347767757,1736097043177,-500.0,8.766e-05,2]
[347767759,1736097043186,-500.0,8.766e-05,2]
[347767762,1736097043195,-500.0,8.766e-05,2]
[347767764,1736097043205,-1649.11,8.766e-05,2]
[347767766,1736097043215,-500.0,8.766e-05,2]
[347767767,1736097043225,-623.15,8.766e-05,2]
[347767769,1736097043234,-500.0,8.766e-05,2]
[347767772,1736097043244,-500.0,8.766e-05,2]
[347767773,1736097043253,-500.0,8.766e-05,2]
[347767776,1736097043263,-944.44,8.766e-05,2]
[347767777,1736097043273,-600.01627834,8.766e-05,2]
[347767780,1736097043283,-500.0,8.766e-05,2]
[347767781,1736097043294,-500.0,8.766e-05,2]
[347767784,1736097043304,-916.71,8.766e-05,2]
[347767786,1736097043314,-1132.59,8.766e-05,2]
[347767787,1736097043323,-1292.44,8.766e-05,2]
[347767790,1736097043333,-500.0,8.766e-05,2]
[347767792,1736097043343,-311.94,8.766e-05,2]
[347767794,1736097043353,-500.0,8.766e-05,2]
[347767796,1736097043362,-552.81,8.766e-05,2]
[347767798,1736097043375,-866.28,8.766e-05,2]
[347767799,1736097043384,-500.0,8.766e-05,2]
[347767801,1736097043394,-500.0,8.766e-05,2]
[347767804,1736097043404,-1620.35,8.766e-05,2]
[347767805,1736097043415,-500.0,8.766e-05,2]
[347767807,1736097043425,-1543.6,8.766e-05,2]
[347767809,1736097043434,-500.0,8.766e-05,2]
[347767812,1736097043444,-998.68,8.766e-05,2]
[347767814,1736097043453,-500.0,8.766e-05,2]
[347767816,1736097043463,-728.39,8.766e-05,2]
[347767817,1736097043472,-500.0,8.766e-05,2]
[347767819,1736097043481,-500.0,8.766e-05,2]
[347767822,1736097043491,-715.86,8.766e-05,2]
[347767824,1736097043501,-932.16,8.767e-05,2]
[347767826,1736097043511,-2115.73,8.767e-05,2]
[347767827,1736097043520,-500.0,8.767e-05,2]
[347767830,1736097043529,-698.78,8.767e-05,2]
[347767832,1736097043539,-1025.34,8.767e-05,2]
[347767834,1736097043551,-1102.24,8.767e-05,2]
[347767836,1736097043560,-1679.0,8.767e-05,2]
[347767838,1736097043569,-1000.0,8.767e-05,2]
[347767840,1736097043578,-602.76,8.767e-05,2]
[347767842,1736097043587,-664.85,8.767e-05,2]
[347767844,1736097043596,-2237.39,8.767e-05,2]
[347767846,1736097043606,-1629.25,8.767e-05,2]
[347767848,1736097043616,-1920.27,8.767e-05,2]
[347767850,1736097043626,-5221.52,8.767e-05,2]
[347767852,1736097043636,-807.93,8.767e-05,2]
[347767854,1736097043645,-500.0,8.767e-05,2]
[347767856,1736097043654,-220.83,8.836e-05,2]
[347767858,1736097043663,-200.64,8.864e-05,2]
[347767860,1736097043673,-612.3,8.864e-05,2]
[347767862,1736097043682,-500.0,8.864e-05,2]
[347767864,1736097043691,-359.05911916,8.864e-05,2]
[347767866,1736097043700,-500.0,8.864e-05,2]
[347767868,1736097043710,-500.0,8.864e-05,2]
[347767870,1736097043720,-478.28982086,8.864e-05,2]
[347767872,1736097043729,-208.12,8.864e-05,2]
[347767874,1736097043739,-276.09,8.864e-05,2]
[347767875,1736097043748,-608.97,8.864e-05,2]
[347767878,1736097043759,-500.0,8.864e-05,2]
[347767879,1736097043768,-539.4,8.864e-05,2]
[347767881,1736097043777,-500.0,8.864e-05,2]
[347767883,1736097043786,-500.0,8.864e-05,2]
[347767885,1736097043796,-500.0,8.864e-05,2]
[347767887,1736097043805,-500.0,8.864e-05,2]
[347767890,1736097043815,-500.0,8.864e-05,2]
[347767893,1736097043825,-500.0,8.864e-05,2]
[347767896,1736097043834,-249.6,8.864e-05,2]
[347767899,1736097043844,-500.0,8.864e-05,2]
[347767902,1736097043853,-500.0,8.864e-05,2]
[347767905,1736097043864,-648.94,8.864e-05,2]
[347767907,1736097043873,-500.0,8.864e-05,2]
[347767908,1736097043882,-500.0,8.864e-05,2]
[347767910,1736097043891,-500.0,8.864e-05,2]
[347767912,1736097043901,-500.0,8.864e-05,2]
[347767914,1736097043910,-500.0,8.864e-05,2]
[347767916,1736097043920,-500.0,8.864e-05,2]
[347767918,1736097043930,-226.68,8.864e-05,2]
[347767920,1736097043939,-500.0,8.864e-05,2]
[347767922,1736097043948,-500.0,8.864e-05,2]
[347767924,1736097043958,-500.0,8.864e-05,2]
[347767926,1736097043967,-500.0,8.864e-05,2]
[347767928,1736097043976,-500.0,8.864e-05,2]
[347767930,1736097043986,-500.0,8.864e-05,2]
[347767932,1736097043995,-500.0,8.864e-05,2]
[347767934,1736097044005,-500.0,8.864e-05,2]
[347767936,1736097044014,-500.0,8.864e-05,2]
[347767938,1736097044024,-636.62,8.864e-05,2]
[347767940,1736097044033,-500.0,8.864e-05,2]
[347767942,1736097044042,-500.0,8.864e-05,2]
[347767944,1736097044052,-500.0,8.864e-05,2]
[347767946,1736097044062,-500.0,8.864e-05,2]
[347767948,1736097044071,-731.72,8.864e-05,2]
[347767950,1736097044080,-500.0,8.864e-05,2]
[347767952,1736097044089,-500.0,8.864e-05,2]
[347767954,1736097044098,-500.0,8.864e-05,2]
[347767956,1736097044108,-500.0,8.864e-05,2]
[347767958,1736097044117,-500.0,8.864e-05,2]
[347767960,1736097044127,-500.0,8.864e-05,2]
[347767962,1736097044136,-500.0,8.864e-05,2]
[347767964,1736097044146,-500.0,8.864e-05,2]
[347767966,1736097044155,-500.0,8.864e-05,2]
[347767968,1736097044165,-535.91,8.864e-05,2]
[347767970,1736097044174,-500.0,8.864e-05,2]
[347767972,1736097044184,-500.0,8.864e-05,2]
[347767974,1736097044193,-500.0,8.864e-05,2]
[347767976,1736097044203,-500.0,8.864e-05,2]
[347767978,1736097044212,-500.0,8.864e-05,2]
[347767980,1736097044222,-500.0,8.864e-05,2]
[347767982,1736097044232,-500.0,8.864e-05,2]
[347767984,1736097044241,-500.0,8.864e-05,2]
[347767986,1736097044250,-568.68,8.864e-05,2]
[347767988,1736097044260,-500.0,8.864e-05,2]
[347767990,1736097044270,-500.0,8.864e-05,2]
[347767992,1736097044279,-500.0,8.864e-05,2]
[347767994,1736097044288,-163.51487932,8.864e-05,2]
[347767996,1736097044298,-500.0,8.864e-05,2]
[347767998,1736097044308,-612.05,8.864e-05,2]
[347768000,1736097044317,-500.0,8.864e-05,2]
[347768002,1736097044327,-500.0,8.864e-05,2]
[347768004,1736097044336,-500.0,8.864e-05,2]
[347768006,1736097044346,-500.0,8.864e-05,2]
[347768008,1736097044355,-500.0,8.864e-05,2]
[347768010,1736097044365,-523.24,8.864e-05,2]
[347768012,1736097044374,-500.0,8.864e-05,2]
[347768014,1736097044384,-500.0,8.864e-05,2]
[347768016,1736097044393,-158.78,8.864e-05,2]
[347768018,1736097044402,-500.0,8.864e-05,2]
[347768020,1736097044412,-500.0,8.864e-05,2]
[347768022,1736097044421,-500.0,8.864e-05,2]
[347768024,1736097044431,-500.0,8.864e-05,2]
[347768026,1736097044439,-500.0,8.864e-05,2]
[347768028,1736097044448,-500.0,8.864e-05,2]
[347768030,1736097044457,-259.03,8.864e-05,2]
[347768032,1736097044466,-500.0,8.864e-05,2]
[347768033,1736097044475,-618.68,8.864e-05,2]
[347768035,1736097044485,-500.0,8.864e-05,2]
[347768037,1736097044494,-500.0,8.864e-05,2]
[347768039,1736097044503,-500.0,8.864e-05,2]
[347768041,1736097044512,-500.0,8.864e-05,2]
[347768043,1736097044521,-500.0,8.864e-05,2]
[347768045,1736097044530,-500.0,8.864e-05,2]
[347768047,1736097044539,-588.23,8.864e-05,2]
[347768049,1736097044549,-500.0,8.864e-05,2]
[347768051,1736097044559,-637.16,8.864e-05,2]
[347768053,1736097044568,-500.0,8.864e-05,2]
[347768055,1736097044578,-500.0,8.864e-05,2]
[347768057,1736097044587,-500.0,8.864e-05,2]